bitfinex-derivatives/quotes_BTCF0:USTF0_20251118
["timestamp","ask_amount","ask_price","bid_price","bid_amount"]
[1763481992876,0.02831,92625.0,92611.0,0.00016191]
[1763481992877,0.2628,92617.0,92611.0,0.00016191]
[1763481993081,0.26276,92617.0,92611.0,0.00016191]
[1763481993271,0.26276,92617.0,92616.0,0.0987]
[1763481993674,0.1080759,92614.0,92611.0,0.00016191]
[1763481993867,0.06686,92612.0,92611.0,0.00016191]
[1763481994067,0.26276,92618.0,92611.0,0.09886191]
[1763481994282,0.4376909,92618.0,92617.0,0.3608]
[1763481995082,0.32962,92618.0,92617.0,0.3608]
[1763481995272,0.06686,92618.0,92617.0,0.3608]
[1763481995478,0.00016191,92622.0,92621.0,0.2067674]
[1763481995780,0.00016191,92622.0,92621.0,0.4595]
[1763481996185,0.1080474,92639.0,92621.0,0.3608]
[1763481996384,0.1749074,92639.0,92638.0,0.3608]
[1763481996581,0.4376274,92639.0,92638.0,0.3608]
[1763481997285,0.4376274,92639.0,92630.0,0.00219803]
[1763481997286,0.1749157,92631.0,92630.0,0.00219803]
[1763481997474,0.1749157,92631.0,92621.0,0.3608]
[1763481997475,0.1749262,92622.0,92621.0,0.3608]
[1763481997782,0.06686,92622.0,92621.0,0.3608]
[1763481998898,0.26272,92627.0,92621.0,0.4595]
[1763481999186,0.001,92622.0,92621.0,0.5675674]
[1763481999386,0.001,92622.0,92621.0,0.9283674]
[1763481999684,0.001,92639.0,92638.0,0.0987]
[1763481999988,0.001,92639.0,92638.0,0.8203]
[1763482000384,0.108039,92646.0,92638.0,0.8203]
[1763482000385,0.1080434,92642.0,92641.0,0.0987]
[1763482001077,0.1080207,92662.0,92641.0,0.0987]
[1763482001288,0.1080328,92651.0,92647.0,0.4595]
[1763482001483,0.1080283,92655.0,92647.0,0.4595]
[1763482001787,0.1080036,92676.0,92658.0,0.0987]
[1763482002085,0.1424391,92671.0,92670.0,0.00219803]
[1763482002285,0.1768691,92671.0,92670.0,0.00219803]
[1763482002784,0.1768691,92671.0,92670.0,0.13115803]
[1763482002785,0.1080091,92671.0,92670.0,0.13115803]
[1763482002989,0.00016191,92680.0,92671.0,0.0987]
[1763482003183,0.108006,92674.0,92673.0,0.05029]
[1763482003489,0.108006,92674.0,92673.0,0.41109]
[1763482003679,0.142436,92674.0,92673.0,0.41109]
[1763482003879,0.142436,92674.0,92673.0,0.3608]
[1763482003880,0.176866,92674.0,92673.0,0.3608]
[1763482004284,0.108006,92674.0,92673.0,0.41109]
[1763482004483,0.001,92674.0,92673.0,0.4595]
[1763482005484,0.001,92674.0,92673.0,0.3608]
[1763482005485,0.07086,92674.0,92673.0,0.3608]
[1763482006284,0.06986,92674.0,92673.0,0.3608]
[1763482006483,0.07086,92674.0,92673.0,0.3608]
[1763482007089,0.03643,92674.0,92673.0,0.3608]
[1763482007284,0.002,92674.0,92673.0,0.5675068]
[1763482007793,0.002,92674.0,92673.0,0.4595]
[1763482008291,0.3608,92712.0,92685.0,0.03026]
[1763482008479,0.1079724,92703.0,92702.0,0.3608]
[1763482008680,0.1079698,92705.0,92702.0,0.3608]
[1763482008987,0.06886,92703.0,92702.0,0.3608]
[1763482009387,0.03443,92703.0,92702.0,0.3608]
[1763482009988,0.06886,92703.0,92702.0,0.3608]
[1763482010194,0.06886,92701.0,92700.0,0.00219803]
[1763482010391,0.06886,92701.0,92673.0,0.3608]
[1763482010392,0.1765456,92674.0,92673.0,0.3608]
[1763482010988,0.1080056,92674.0,92673.0,0.3608]
[1763482011796,0.1080045,92675.0,92673.0,0.3608]
[1763482012495,0.00219803,92680.0,92679.0,0.0987]
[1763482012794,0.00016182,92683.0,92682.0,0.0987]
[1763482014198,0.00116182,92683.0,92682.0,0.0987]
[1763482014699,0.1079816,92695.0,92694.0,0.0987]
[1763482014899,0.11016203,92710.0,92694.0,0.8203]
[1763482015104,0.1079648,92709.0,92707.0,0.3608]
[1763482015694,0.06854,92708.0,92707.0,0.3608]
[1763482015892,0.1079648,92709.0,92708.0,0.0987]
[1763482017504,0.001,92710.0,92709.0,0.2162648]
[1763482017699,0.001,92710.0,92709.0,0.4691]
[1763482018512,0.1079595,92714.0,92713.0,0.1083]
[1763482019804,0.10811782,92717.0,92716.0,0.1083]
[1763482020604,0.00026961,92726.0,92725.0,0.1083]
[1763482020910,0.10915961,92726.0,92725.0,0.3608]
[1763482022001,0.00026961,92726.0,92725.0,0.48110429]
[1763482022396,0.00010628,92735.0,92734.0,0.2162357]
[1763482022599,0.3608,92771.0,92745.0,0.03364]
[1763482022803,0.1079111,92756.0,92751.0,0.3608]
[1763482023103,0.00219803,92760.0,92759.0,0.1083]
[1763482023308,0.00219803,92760.0,92759.0,0.4691]
[1763482023506,0.3608,92783.0,92760.0,0.03437003]
[1763482023808,0.1078962,92768.0,92767.0,0.4691]
[1763482024012,0.3608,92793.0,92767.0,0.4691]
[1763482024013,0.3608,92802.0,92784.0,0.14194]
[1763482024199,0.00219803,92790.0,92789.0,0.1083]
[1763482024400,0.1078373,92819.0,92790.0,0.10860013]
[1763482024612,0.00219803,92810.0,92805.0,0.1083]
[1763482025710,0.3608,92823.0,92805.0,0.1083]
[1763482025911,1.5,92831.0,92830.0,0.1083]
[1763482026098,0.1078,92851.0,92830.0,0.46983003]
[1763482026301,0.39937512,92872.0,92871.0,0.2416965]
[1763482026609,0.14515,92872.0,92871.0,0.72143809]
[1763482026800,0.03626,92888.0,92856.0,0.3608]
[1763482026801,0.1077896,92860.0,92856.0,0.3608]
[1763482027006,0.3608,92860.0,92850.0,0.00219803]
[1763482027310,0.1077997,92851.0,92850.0,0.00219803]
[1763482027504,0.1077997,92851.0,92846.0,0.00016151]
[1763482028007,0.001,92860.0,92846.0,0.00016151]
[1763482028209,0.001,92860.0,92856.0,0.3608]
[1763482028505,0.1087895,92860.0,92856.0,0.3608]
[1763482028705,0.001,92860.0,92856.0,0.3608]
[1763482028914,0.3608,92889.0,92859.0,0.1083]
[1763482029104,0.3608,92889.0,92880.0,0.00219803]
[1763482029699,0.1077823,92866.0,92865.0,0.00016151]
[1763482030513,0.3608,92889.0,92865.0,0.00016151]
[1763482030514,0.107764,92882.0,92865.0,0.00016151]
[1763482030704,0.107768,92879.0,92876.0,0.3608]
[1763482031307,0.3608,92901.0,92876.0,0.3608]
[1763482031615,0.3608,92909.0,92872.0,0.03364]
[1763482031616,0.3608,92909.0,92894.0,0.3608]
[1763482031808,0.3608,92909.0,92900.0,0.00219803]
[1763482031809,0.1077417,92901.0,92900.0,0.00219803]
[1763482032314,0.4685417,92901.0,92900.0,0.00219803]
[1763482032716,0.107751,92893.0,92892.0,0.00016151]
[1763482032904,0.468551,92893.0,92892.0,0.00016151]
[1763482033104,0.1077458,92898.0,92892.0,0.00016151]
[1763482033304,0.1077417,92901.0,92900.0,0.00073006]
[1763482033507,0.003,92901.0,92900.0,0.00073006]
[1763482033712,0.003,92901.0,92900.0,0.10903006]
[1763482033903,0.3608,92922.0,92900.0,0.10903006]
[1763482033904,0.1077312,92911.0,92900.0,0.10903006]
[1763482034105,0.1077312,92911.0,92910.0,0.14194]
[1763482034310,0.1077312,92911.0,92910.0,0.14267006]
[1763482034510,0.03857512,92981.0,92910.0,0.14267006]
[1763482034511,0.1077156,92924.0,92910.0,0.14267006]
[1763482034808,0.3608,92958.0,92923.0,0.1083]
[1763482035017,0.1076977,92939.0,92934.0,0.03364]
[1763482035203,0.1076977,92939.0,92938.0,0.4691]
[1763482035405,0.1076848,92951.0,92950.0,0.04872]
[1763482035603,0.1076848,92951.0,92950.0,0.46983006]
[1763482035807,0.1076848,92951.0,92950.0,0.36153006]
[1763482036413,0.4684848,92951.0,92950.0,0.00073006]
[1763482036816,0.4684848,92951.0,92941.0,0.00016142]
[1763482036817,0.1076942,92942.0,92941.0,0.00016142]
[1763482037404,0.1076942,92942.0,92941.0,0.40968142]
[1763482037605,0.1076917,92945.0,92944.0,0.1083]
[1763482038008,0.1076917,92945.0,92941.0,0.36096142]
[1763482038207,0.1076917,92945.0,92944.0,0.1083]
[1763482038412,0.1076814,92954.0,92953.0,0.1083]
[1763482038603,0.1076749,92959.0,92958.0,0.04872]
[1763482038803,0.1076749,92959.0,92958.0,0.1083]
[1763482039420,0.1076749,92959.0,92958.0,0.12039116]
[1763482039616,0.1076679,92965.0,92964.0,0.1083]
[1763482039808,0.1076679,92965.0,92964.0,0.4691]
[1763482040812,0.1116679,92965.0,92964.0,0.4691]
[1763482041405,0.1116679,92965.0,92964.0,0.40952]
[1763482041605,0.1116679,92965.0,92964.0,0.49016]
[1763482042122,0.1156679,92965.0,92964.0,0.49016]
[1763482042427,0.1076364,92992.0,92990.0,0.06418]
[1763482042804,0.1076363,92992.0,92988.0,0.03699]
[1763482043016,0.1076363,92992.0,92991.0,0.42498]
[1763482043411,0.1076363,92992.0,92991.0,0.49016]
[1763482043613,0.1076363,92992.0,92991.0,0.3608]
[1763482043807,0.1086363,92992.0,92991.0,0.3608]
[1763482044114,0.001,92992.0,92991.0,0.49016]
[1763482045720,0.0002688,93006.0,93005.0,0.12936]
[1763482046023,0.1078889,93006.0,93005.0,0.49016]
[1763482046223,0.1078889,93006.0,93005.0,0.3608]
[1763482046521,0.1076258,93001.0,93000.0,0.00073006]
[1763482046709,0.1076258,93001.0,93000.0,0.06491006]
[1763482046915,0.1076258,93001.0,93000.0,0.13009006]
[1763482048311,0.1076258,93001.0,93000.0,0.00073006]
[1763482048625,0.2405558,93001.0,93000.0,6e-08]
[1763482048807,0.2405558,93001.0,92976.0,0.3608]
[1763482048808,0.2405767,92983.0,92982.0,4e-08]
[1763482049007,0.6013767,92983.0,92982.0,4e-08]
[1763482049210,0.6013767,92983.0,92950.0,0.24430454]
[1763482049211,0.06407,92968.0,92950.0,0.24430454]
[1763482049418,0.1076814,92953.0,92952.0,0.13696643]
[1763482049927,0.1717514,92953.0,92952.0,7.643e-05]
[1763482050306,0.2406114,92953.0,92952.0,7.643e-05]
[1763482050620,0.3608,92954.0,92953.0,0.13689]
[1763482050913,0.00015971,92962.0,92953.0,0.13689]
[1763482051105,0.00219803,92960.0,92959.0,0.13689]
[1763482051305,0.00219803,92960.0,92952.0,0.00107643]
[1763482051511,0.13293,92953.0,92952.0,0.00107643]
[1763482051716,0.06407,92953.0,92952.0,0.00107643]
[1763482051920,0.00015971,92962.0,92954.0,0.13689]
[1763482052112,0.3608,92955.0,92954.0,0.13689]
[1763482052308,0.3608,92955.0,92952.0,7.643e-05]
[1763482052816,0.00219803,92960.0,92954.0,0.13689]
[1763482053018,0.00219803,92960.0,92954.0,0.03689]
[1763482053206,0.00219803,92960.0,92959.0,0.0657]
[1763482053414,0.00219803,92960.0,92959.0,0.13689]
[1763482054114,0.00219803,92960.0,92952.0,0.04018643]
[1763482054115,0.00015971,92962.0,92961.0,0.13689]
[1763482054514,0.00219803,92960.0,92955.0,0.3608]
[1763482054814,0.00015971,92962.0,92961.0,0.03689]
[1763482055020,0.00015971,92962.0,92961.0,0.10259]
[1763482055216,0.3608,92975.0,92961.0,0.10259]
[1763482055425,0.3608,92975.0,92955.0,0.3608]
[1763482055426,0.00219803,92970.0,92965.0,0.24430454]
[1763482056013,0.3608,92975.0,92965.0,0.24430454]
[1763482056413,0.00219803,92970.0,92969.0,0.13689]
[1763482056618,0.00219803,92970.0,92963.0,0.3608]
[1763482056908,0.3608,92986.0,92969.0,0.13689]
[1763482057114,0.00219803,92980.0,92970.0,0.24430454]
[1763482057818,0.00219803,92980.0,92979.0,0.0657]
[1763482058021,0.3608,92998.0,92979.0,0.49769]
[1763482058221,0.00219803,92990.0,92980.0,0.14430454]
[1763482059022,0.04393803,92990.0,92980.0,0.14430454]
[1763482059225,0.40473803,92990.0,92979.0,0.36096134]
[1763482059625,0.40573803,92990.0,92979.0,0.36096134]
[1763482059924,0.00419803,92990.0,92989.0,0.13689]
[1763482060118,0.002,92990.0,92989.0,0.06181]
[1763482060325,0.00419803,92990.0,92989.0,0.06181]
[1763482060526,0.11000803,92990.0,92979.0,0.36096134]
[1763482060721,0.11000803,92990.0,92980.0,0.24430454]
[1763482061223,0.002,92990.0,92989.0,0.04984]
[1763482061617,0.001,92990.0,92989.0,0.04984]
[1763482061822,0.42906803,92990.0,92980.0,0.24430454]
[1763482062028,0.36499803,92990.0,92980.0,0.24430454]
[1763482062226,0.00319803,92990.0,92980.0,0.24430454]
[1763482062529,0.00519803,92990.0,92980.0,0.24430454]
[1763482063824,0.00173261,92990.0,92980.0,0.24650257]
[1763482064119,0.00273261,92990.0,92980.0,0.24650257]
[1763482065432,0.13293,92981.0,92980.0,0.00219803]
[1763482066535,0.13366261,92980.0,92979.0,0.00016134]
[1763482067031,0.13366261,92980.0,92960.0,0.3608]
[1763482067225,0.13293,92971.0,92970.0,0.00219803]
[1763482067731,0.40254,92976.0,92975.0,0.02508]
[1763482067927,0.3608,92976.0,92975.0,0.05016]
[1763482068128,0.13293,92971.0,92970.0,0.00219803]
[1763482069434,0.13393,92971.0,92970.0,0.00219803]
[1763482069821,0.13393,92971.0,92961.0,0.24446588]
[1763482069822,0.13293,92962.0,92961.0,0.00016134]
[1763482070937,0.06407,92962.0,92961.0,0.00016134]
[1763482071130,0.3786923,92976.0,92961.0,0.05032134]
[1763482071443,0.06407,92971.0,92970.0,0.00219803]
[1763482071823,0.04174,92976.0,92970.0,0.02727803]
[1763482072232,0.04174,92976.0,92975.0,0.02508]
[1763482072431,0.13293,92971.0,92970.0,0.00219803]
[1763482073033,0.13393,92971.0,92970.0,0.00219803]
[1763482073640,0.06407,92962.0,92961.0,0.00016134]
[1763482073844,0.13293,92962.0,92961.0,0.00016134]
[1763482074736,0.49373,92962.0,92961.0,0.00016134]
[1763482078041,0.04174,92976.0,92969.0,0.0248]
[1763482078042,0.3608,92970.0,92969.0,0.0248]
[1763482078244,0.13589,92962.0,92961.0,0.00016134]
[1763482079234,0.3608,92970.0,92961.0,0.10146134]
[1763482079437,0.00073261,92970.0,92969.0,0.1013]
[1763482079742,0.00016134,92980.0,92975.0,0.1013]
[1763482079944,0.00089395,92980.0,92975.0,0.1013]
[1763482080242,0.00089395,92980.0,92979.0,0.05065]
[1763482080543,0.04174,92992.0,92991.0,0.05065]
[1763482080736,0.42844,93001.0,93000.0,0.05065]
[1763482080936,0.49669,93001.0,93000.0,0.00219803]
[1763482081538,0.13589,92975.0,92974.0,0.08697069]
[1763482081733,0.13589,92975.0,92971.0,0.0576881]
[1763482082134,0.00219803,92980.0,92974.0,0.1057]
[1763482082439,0.04242,92985.0,92974.0,0.1057]
[1763482082440,0.3608,93001.0,92989.0,0.1057]
[1763482082643,0.0002688,93006.0,93005.0,0.1057]
[1763482082842,0.3608,93017.0,93016.0,0.1057]
[1763482083047,0.03857512,93037.0,93016.0,0.4665]
[1763482083244,0.04461803,93030.0,93020.0,0.14478911]
[1763482083633,0.3608,93027.0,93020.0,0.15660229]
[1763482083833,0.06764,93021.0,93020.0,0.01181318]
[1763482084039,0.04461803,93030.0,93020.0,0.05285]
[1763482084343,0.36106869,93046.0,93029.0,0.4665]
[1763482084549,0.00219803,93040.0,93030.0,0.14478911]
[1763482084738,0.00219803,93040.0,93039.0,0.4665]
[1763482085247,0.06983803,93040.0,93030.0,0.50558911]
[1763482085441,0.00219803,93040.0,93039.0,0.4665]
[1763482085639,0.00026869,93046.0,93045.0,0.05285]
[1763482085834,0.3608,93066.0,93059.0,0.05285]
[1763482086339,0.02412551,93070.0,93059.0,0.05285]
[1763482086657,0.02412551,93070.0,93058.0,0.3608]
[1763482086658,0.13589,93067.0,93060.0,0.14478911]
[1763482086837,0.13589,93067.0,93066.0,0.3608]
[1763482087243,0.11006961,93067.0,93053.0,0.00016125]
[1763482087444,0.13589,93054.0,93053.0,0.00016125]
[1763482087639,0.02192748,93070.0,93055.0,0.13813]
[1763482087842,0.06764,93068.0,93067.0,0.3608]
[1763482088955,0.02192748,93070.0,93069.0,0.13813]
[1763482089137,0.04242,93104.0,93085.0,0.13813]
[1763482089342,0.40322,93104.0,93085.0,0.49893]
[1763482089646,0.00219803,93100.0,93090.0,0.14478911]
[1763482090143,0.00219803,93100.0,93099.0,0.13813]
[1763482090341,0.06764,93091.0,93090.0,0.14478911]
[1763482090544,0.3608,93104.0,93103.0,0.13813]
[1763482091043,0.00219803,93100.0,93085.0,0.37257791]
[1763482091243,0.00219803,93100.0,93090.0,0.14478911]
[1763482091546,0.3628,93091.0,93078.0,0.3608]
[1763482091739,0.13589,93079.0,93078.0,0.3608]
[1763482092050,0.06764,93079.0,93078.0,0.3608]
[1763482092344,0.3628,93091.0,93079.0,0.07059]
[1763482092549,0.00219803,93090.0,93080.0,0.14478911]
[1763482092744,0.00219803,93090.0,93078.0,0.45905905]
[1763482092745,0.00219803,93090.0,93086.0,0.3608]
[1763482092950,0.00219803,93090.0,93089.0,0.13813]
[1763482093342,0.00219803,93090.0,93089.0,0.07059]
[1763482093551,0.00219803,93090.0,93086.0,0.3608]
[1763482093740,0.00219803,93090.0,93080.0,0.14478911]
[1763482093741,0.13589,93087.0,93078.0,0.37286885]
[1763482093937,0.06764,93079.0,93078.0,0.37286885]
[1763482094243,0.002,93090.0,93079.0,0.07059]
[1763482094448,0.00419803,93090.0,93089.0,0.07059]
[1763482094642,0.00419803,93090.0,93089.0,0.13813]
[1763482094939,0.40322,93104.0,93089.0,0.49893]
[1763482095247,0.3608,93117.0,93089.0,0.49893]
[1763482095248,0.3608,93117.0,93103.0,0.3608]
[1763482095452,0.3608,93117.0,93116.0,0.13813]
[1763482096042,0.3608,93117.0,93107.0,0.14478911]
[1763482096242,0.00219803,93120.0,93116.0,0.49893]
[1763482096445,0.3608,93134.0,93119.0,0.13813]
[1763482096639,0.3608,93134.0,93133.0,0.13813]
[1763482096950,0.3608,93173.0,93133.0,0.3608]
[1763482097152,0.3608,93173.0,93139.0,0.13813]
[1763482097153,0.00219803,93140.0,93139.0,0.13813]
[1763482097359,0.00219803,93140.0,93139.0,0.49893]
[1763482097653,0.13808803,93140.0,93139.0,0.3608]
[1763482098044,0.00219803,93140.0,93139.0,0.37265095]
[1763482098246,1.5,93159.0,93139.0,0.37265095]
[1763482098441,0.06764,93157.0,93156.0,0.3608]
[1763482098648,0.13589,93157.0,93156.0,0.3608]
[1763482098858,1.5,93159.0,93158.0,0.13813]
[1763482099751,1.5,93159.0,93156.0,0.7216]
[1763482099946,0.13589,93157.0,93156.0,0.3608]
[1763482100349,1.5,93159.0,93156.0,0.3608]
[1763482100749,0.14432,93157.0,93156.0,0.3608]
[1763482101459,0.14432,93150.0,93149.0,0.00016106]
[1763482101761,0.00219803,93150.0,93149.0,0.00016106]
[1763482102050,0.00219803,93150.0,93149.0,0.13788106]
[1763482103551,0.00026834,93166.0,93158.0,0.13772]
[1763482103752,0.00026834,93166.0,93165.0,0.13772]
[1763482104752,0.3608,93198.0,93165.0,0.40104]
[1763482105053,0.00219803,93180.0,93179.0,0.06967]
[1763482105445,0.00219803,93180.0,93179.0,0.13772]
[1763482105650,0.3608,93198.0,93179.0,0.13772]
[1763482105850,0.00219803,93180.0,93179.0,0.13772]
[1763482106051,0.00219803,93180.0,93179.0,0.06967]
[1763482106451,0.00219803,93180.0,93179.0,0.13772]
[1763482106664,0.00419803,93180.0,93179.0,0.13772]
[1763482107259,0.002,93180.0,93179.0,0.13772]
[1763482107451,0.00471616,93189.0,93188.0,0.14951]
[1763482107651,0.2632,93217.0,93188.0,0.51031]
[1763482107856,0.00219803,93210.0,93197.0,0.3608]
[1763482108052,0.00219803,93210.0,93205.0,0.14951]
[1763482108265,0.3608,93212.0,93205.0,0.14951]
[1763482108563,0.00219803,93210.0,93197.0,0.3608]
[1763482108751,0.00219803,93210.0,93197.0,0.51031]
[1763482108967,0.00219803,93210.0,93197.0,0.43566]
[1763482109460,0.00219803,93210.0,93197.0,0.3608]
[1763482109461,0.1802582,93198.0,93197.0,0.3608]
[1763482109760,0.2500586,93189.0,93188.0,0.36096097]
[1763482109963,0.2500586,93189.0,93188.0,0.00016097]
[1763482110162,0.2530586,93189.0,93188.0,7e-08]
[1763482110462,0.1074237,93176.0,93175.0,0.14951]
[1763482110655,0.1074329,93168.0,93167.0,0.3608]
[1763482110858,0.1802929,93168.0,93167.0,0.3608]
[1763482111061,0.1074329,93168.0,93167.0,0.3608]
[1763482111266,0.1074329,93168.0,93167.0,0.51031]
[1763482112173,0.1074266,93174.0,93173.0,0.14951]
[1763482113059,0.1802929,93168.0,93167.0,0.3608]
[1763482113255,0.1074329,93168.0,93167.0,0.51031]
[1763482113457,0.1084329,93168.0,93167.0,0.51031]
[1763482113662,0.001,93168.0,93167.0,0.51031]
[1763482114168,0.001,93168.0,93167.0,0.43566]
[1763482114371,0.001,93168.0,93158.0,7e-08]
[1763482114372,0.14265,93159.0,93158.0,7e-08]
[1763482114671,0.50345,93159.0,93158.0,7e-08]
[1763482115261,0.2500945,93158.0,93148.0,0.37244704]
[1763482115468,0.2500945,93158.0,93148.0,0.37260801]
[1763482115666,0.1074445,93158.0,93157.0,0.0749848]
[1763482115858,0.1074445,93158.0,93157.0,0.1496348]
[1763482116562,0.1084445,93158.0,93157.0,0.1496348]
[1763482117060,0.1084445,93158.0,93157.0,0.0749848]
[1763482117259,0.1084445,93158.0,93157.0,0.1496348]
[1763482117455,0.1094445,93158.0,93157.0,0.1496348]
[1763482118169,0.36095976,93177.0,93176.0,0.14951]
[1763482118656,0.46838226,93177.0,93176.0,0.14951]
[1763482118854,0.1074329,93168.0,93167.0,0.51047097]
[1763482119262,0.4682329,93168.0,93167.0,0.14967097]
[1763482119464,0.4682329,93168.0,93160.0,0.04592]
[1763482119465,0.14265,93158.0,93157.0,0.0001248]
[1763482119858,0.1074433,93159.0,93158.0,0.07486]
[1763482120058,0.1074433,93159.0,93158.0,0.14951]
[1763482120460,0.1074433,93159.0,93157.0,0.0001248]
[1763482120461,0.07286,93158.0,93157.0,0.0001248]
[1763482120663,0.14365,93158.0,93157.0,0.0001248]
[1763482121367,0.14265,93158.0,93157.0,0.0001248]
[1763482121667,0.50345,93158.0,93157.0,0.0001248]
[1763482122055,0.3608,93158.0,93157.0,0.0749848]
[1763482122461,0.3618,93158.0,93157.0,0.0749848]
[1763482122770,0.14365,93158.0,93157.0,0.0001248]
[1763482122965,0.14365,93158.0,93149.0,0.00029097]
[1763482122966,0.1803103,93153.0,93152.0,0.02834857]
[1763482123153,0.1803103,93153.0,93151.0,0.02834857]
[1763482123154,0.14265,93152.0,93151.0,0.02834857]
[1763482123354,0.14484803,93150.0,93149.0,0.00029097]
[1763482123555,1.64484803,93150.0,93149.0,0.00029097]
[1763482123761,1.50219803,93150.0,93149.0,0.14980097]
[1763482123960,0.14265,93146.0,93145.0,0.02834857]
[1763482124166,0.14265,93137.0,93136.0,0.03800343]
[1763482124369,0.1074734,93133.0,93132.0,0.0576881]
[1763482124573,0.2501326,93125.0,93124.0,0.0576881]
[1763482124876,0.4682584,93146.0,93145.0,0.14951]
[1763482125472,1.9682584,93146.0,93145.0,0.14951]
[1763482125672,0.001,93153.0,93145.0,0.23756342]
[1763482125863,0.1084503,93153.0,93152.0,0.10802]
[1763482126268,0.1074607,93144.0,93143.0,0.07591885]
[1763482126472,0.1074607,93144.0,93143.0,0.10802]
[1763482126670,0.1074607,93144.0,93143.0,0.19255998]
[1763482127171,0.10966333,93140.0,93136.0,0.00016106]
[1763482127474,0.10966333,93140.0,93139.0,0.46882]
[1763482127668,0.10866333,93140.0,93139.0,0.46882]
[1763482128766,0.10866333,93140.0,93139.0,0.553759]
[1763482129478,0.00016106,93155.0,93154.0,0.10364]
[1763482129767,0.00016106,93155.0,93154.0,0.82524]
[1763482131959,0.00016106,93155.0,93154.0,0.9326891]
[1763482132165,0.3608,93191.0,93154.0,0.9326891]
[1763482132166,0.3608,93191.0,93157.0,0.1074454]
[1763482132375,0.1074428,93160.0,93159.0,0.10364]
[1763482132675,0.1074339,93168.0,93163.0,0.10364]
[1763482132864,0.1074339,93168.0,93167.0,0.41262]
[1763482133065,0.1074294,93172.0,93171.0,0.10364]
[1763482133471,0.00016106,93177.0,93171.0,0.10364]
[1763482133673,0.10758366,93177.0,93176.0,0.3608]
[1763482134273,0.22628366,93177.0,93176.0,0.3608]
[1763482134667,0.22728366,93177.0,93176.0,0.3608]
[1763482134967,0.29707366,93177.0,93176.0,0.3608]
[1763482135170,0.29807366,93177.0,93176.0,0.3608]
[1763482135773,0.18244366,93177.0,93176.0,0.3608]
[1763482135972,0.10958366,93177.0,93176.0,0.41262]
[1763482136171,0.10958366,93177.0,93176.0,0.41818155]
[1763482136377,0.10958366,93177.0,93176.0,0.3608]
[1763482136378,0.25223366,93177.0,93176.0,0.3608]
[1763482136671,0.10858366,93177.0,93176.0,0.41262]
[1763482136885,0.10958366,93177.0,93176.0,0.41262]
[1763482137069,0.10958366,93177.0,93176.0,0.46444]
[1763482137376,0.1074192,93180.0,93179.0,0.10818]
[1763482137576,0.2542926,93177.0,93176.0,0.3608]
[1763482137872,0.2542926,93177.0,93170.0,0.00219803]
[1763482137873,0.2542995,93171.0,93170.0,0.00219803]
[1763482138373,0.1074422,93160.0,93159.0,0.10818]
[1763482138577,0.10964023,93160.0,93159.0,0.10818]
[1763482139181,0.14687,93159.0,93156.0,0.3608]
[1763482139480,0.14687,93157.0,93156.0,0.35845653]
[1763482139879,0.10964023,93160.0,93159.0,0.10818]
[1763482140581,0.00026834,93166.0,93162.0,0.05409]
[1763482140881,0.25457394,93166.0,93165.0,0.3608]
[1763482141583,0.10770394,93166.0,93165.0,0.46898]
[1763482142578,0.2543145,93158.0,93157.0,0.0765303]
[1763482142782,0.1074445,93158.0,93156.0,0.46663653]
[1763482142975,0.1074445,93158.0,93157.0,0.10818]
[1763482144082,0.10770364,93166.0,93165.0,0.10818]
[1763482144278,0.10770364,93166.0,93165.0,0.46898]
[1763482144475,0.25457364,93166.0,93165.0,0.3608]
[1763482144975,0.2543157,93157.0,93156.0,0.35845653]
[1763482145175,0.1074423,93160.0,93159.0,0.10818]
[1763482145381,0.22852183,93157.0,93156.0,0.44307078]
[1763482146176,0.22852183,93157.0,93156.0,0.35845653]
[1763482146880,0.107448,93155.0,93154.0,0.05743476]
[1763482147069,0.254318,93155.0,93153.0,6e-08]
[1763482147271,0.14687,93151.0,93150.0,1.12e-06]
[1763482147468,0.1074503,93153.0,93150.0,0.03827608]
[1763482147775,0.14687,93151.0,93150.0,1.12e-06]
[1763482147975,0.1074503,93153.0,93150.0,1.12e-06]
[1763482148376,0.1074503,93153.0,93146.0,0.3608]
[1763482148377,0.2211337,93150.0,93149.0,3e-08]
[1763482148680,0.14687,93125.0,93120.0,0.37391]
[1763482148870,0.2543572,93121.0,93120.0,0.37391]
[1763482149076,0.2543745,93106.0,93105.0,0.00010395]
[1763482149276,0.6151745,93106.0,93105.0,0.00010395]
[1763482149773,0.2543849,93097.0,93096.0,0.00016106]
[1763482150374,0.1075149,93097.0,93096.0,0.10866106]
[1763482150571,0.36096106,93115.0,93113.0,0.05425]
[1763482150778,0.36096106,93115.0,93114.0,0.1085]
[1763482150779,0.00016106,93115.0,93114.0,0.1085]
[1763482150983,0.00025469,93115.0,93114.0,0.1085]
[1763482152385,0.1075045,93106.0,93105.0,0.29587759]
[1763482152575,0.1075045,93106.0,93105.0,0.35012759]
[1763482152770,0.00219803,93110.0,93109.0,0.1085]
[1763482153685,0.07351803,93110.0,93109.0,0.05425]
[1763482154473,0.00219803,93110.0,93109.0,0.1085]
[1763482154773,0.1788245,93106.0,93105.0,0.05425]
[1763482154978,0.1075045,93106.0,93105.0,0.05425]
[1763482155175,0.00219803,93110.0,93105.0,0.05425]
[1763482155379,0.10969793,93110.0,93109.0,0.1085]
[1763482155580,0.00025469,93115.0,93114.0,0.1085]
[1763482155786,0.10774879,93115.0,93114.0,0.4693]
[1763482155988,0.1074988,93111.0,93110.0,0.36251004]
[1763482156186,0.2543688,93111.0,93110.0,0.36251004]
[1763482156380,0.1788338,93098.0,93097.0,0.0765303]
[1763482156573,0.00122065,93100.0,93099.0,0.1085]
[1763482156777,0.14687,93098.0,93097.0,0.3608]
[1763482156973,0.1065149,93097.0,93096.0,0.14139292]
[1763482157180,0.1065149,93097.0,93096.0,0.19564292]
[1763482157384,0.1075126,93099.0,93096.0,0.55644292]
[1763482157779,0.1075126,93099.0,93096.0,0.19564292]
[1763482157984,0.1075126,93099.0,93098.0,0.05425]
[1763482158191,0.2543826,93099.0,93096.0,0.08714292]
[1763482158488,0.14687,93097.0,93096.0,0.08714292]
[1763482159390,0.40971,93097.0,93096.0,0.08714292]
[1763482159585,0.40971,93097.0,93096.0,0.19564292]
[1763482159586,0.26284,93097.0,93096.0,0.19564292]
[1763482159888,0.40971,93097.0,93096.0,0.08714292]
[1763482160586,0.40971,93097.0,93096.0,0.00016106]